Cogmind - Beta 13 @@@ ROGUE MODE // 2024.06.02 @ 10:50:59 Player: Kat Result: Self-destructed Performance ------------- Evolutions (3) 1500 Regions Visited (5) 1000 Robots Destroyed (56) 280 Value Destroyed (1428) 1428 Prototype IDs (3) 60 Alien Tech Used (0) 0 Bonus (200) 200 TOTAL SCORE: 4468 Bonus ------- Pacifist 200 Cogmind --------- Core Integrity 597/700 Matter 49/300 Energy 100/100 System Corruption 2% Temperature Cool (0) Movement Walking (140) Location -7/Lower Caves Parts ------- > --- POWER (2) -------- (None) > --- PROPULSION (3) --- Makeshift Leg > --- UTILITY (4) ------ Hacking Suite > --- WEAPON (4) ------- (None) > --- INVENTORY (5) ---- High-powered Shotgun Gauss Cannon Datajack Peak State ------------ > --- POWER ------------ Heavy Ion Engine > --- PROPULSION ------- Advanced Treads Advanced Treads > --- UTILITY ---------- Medium Storage Unit Improved Signal Interpreter Hacking Suite System Shield > --- WEAPON ----------- Gauss Cannon Gauss Cannon Gauss Cannon Gauss Cannon > --- INVENTORY -------- Improved Flight Unit Improved Flight Unit Improved Flight Unit Sensor Array Medium Armor Plating EM Pulse Cannon EM Pulse Cannon Shotgun High-powered Shotgun Datajack [Rating: 37] Favorites ----------- Power Light Ion Engine Engine Light Ion Engine Propulsion Aluminum Leg Treads Light Treads Leg Aluminum Leg Flight Unit Improved Flight Unit Utility Medium Storage Unit Device Sensor Array Storage Medium Storage Unit Processor Improved Signal Interpreter Hackware Hacking Suite Protection Medium Armor Plating Weapon Improved Assault Rifle Energy Gun EM Pulse Gun Energy Cannon EM Pulse Cannon Ballistic Gun Improved Assault Rifle Ballistic Cannon Gauss Cannon Special Melee Weapon Datajack Build | -11 -10 -9 -8 -7 -7 ------- Run | Yrd Mat Mat Mat Fac Low Slots Evolved 6 | . . 2 2 2 . Power 1 | . . . . 1 . Propulsion 1 | . . . . 1 . Utility 2 | . . 2 . . . Weapon 2 | . . . 2 . . Parts Attached 57 | 6 3 13 28 1 6 Power 3 | 1 . 1 1 . . Engine 3 | 1 . 1 1 . . Core . | . . . . . . Reactor . | . . . . . . Propulsion 14 | 2 . 5 4 1 2 Treads 4 | . . . 4 . . Leg 6 | 2 . 3 . . 1 Wheel . | . . . . . . Hover . | . . . . . . Flight 4 | . . 2 . 1 1 Utility 12 | 1 2 3 5 . 1 Device 3 | . . 2 1 . . Storage 2 | 1 1 . . . . Processor 1 | . . . 1 . . Hackware 3 | . . . 2 . 1 Protection 3 | . 1 1 1 . . Artifact . | . . . . . . Weapon 28 | 2 1 4 18 . 3 Energy Gun 1 | 1 . . . . . Energy Cannon 4 | . . . 4 . . Ballistic Gun 15 | 1 . 4 9 . 1 Ballistic Cannon 7 | . 1 . 5 . 1 Launcher . | . . . . . . Special Weapon . | . . . . . . Impact Weapon . | . . . . . . Slashing Weapon . | . . . . . . Piercing Weapon . | . . . . . . Special Melee Weapon 1 | . . . . . 1 Unidentified Prototypes 3 | . . 2 1 . . Parts Lost 3 | . . . 2 . 1 Power . | . . . . . . Propulsion 1 | . . . . . 1 Utility 1 | . . . 1 . . Weapon 1 | . . . 1 . . Highest Loss Streak 1 | . . . 1 . 1 To Critical Strikes . | . . . . . . Average Slot Usage (%) 90 | . 97 95 95 35 8 Engine 9 | . 14 11 8 . . Treads 5 | . . . 11 . . Leg 12 | . 28 21 3 . 1 Device 10 | . . 18 8 . . Storage 9 | . 14 11 9 4 . Processor 4 | . . . 8 4 . Hackware 1 | . . . 1 9 2 Protection 8 | . 11 10 8 . . Energy Gun 1 | . 14 1 . . . Energy Cannon 2 | . . . 4 4 . Ballistic Gun 20 | . 5 17 28 . 1 Ballistic Cannon 2 | . 8 1 2 9 . Naked Turns 113 | . . . . 38 75 Heaviest Build 46 | 11 19 29 46 30 11 Greatest Support 44 | 20 20 20 44 5 20 Greatest Overweight (x) 5 | 1 . 2 3 5 1 Average Overweight (x) . | . . . . . . Largest Inventory Capacity 10 | 8 10 10 10 10 5 Average Capacity 9 | 7 8 10 10 7 5 Most Carried 10 | 2 4 10 10 10 5 Average Carried 7 | . 2 7 9 7 3 Final Capacity 10 | 8 10 10 10 5 5 Final Carried 10 | . 3 10 10 5 3 Class Distribution -------------------- 50% | Mutant 32% | Scavenger-Skirmisher 9% | Skirmisher 5% | Hacker-Gunner 3% | Tank Dominant Class ---------------- Mutant | -10/Materials Mutant | -9/Materials Scavenger-Skirmisher | -8/Materials Hacker-Gunner | -7/Factory Mutant | -7/Lower Caves Resources | -11 -10 -9 -8 -7 -7 ----------- Run | Yrd Mat Mat Mat Fac Low Matter Collected 1557 | 167 . 611 652 . 127 Remotely . | . . . . . . Salvage Created 2229 | . . 978 1142 32 77 Parts 127 | . . 61 66 . . Haulers Intercepted 5 | . . 4 1 . . Recyclers Shooed 2 | . . 2 . . . Parts Field Recycled . | . . . . . . Retrieved Matter . | . . . . . . Parts Self-Destructed . | . . . . . . Prevented . | . . . . . . Kills | -11 -10 -9 -8 -7 -7 ------- Run | Yrd Mat Mat Mat Fac Low Combat Hostiles Destroyed 31 | . . 14 17 . . Guns 27 | . . 14 13 . . Cannons 3 | . . . 3 . . AOE 1 | . . . 1 . . Classes Destroyed 14 | . . 7 6 . 1 Builder 3 | . . . 3 . . Tunneler 1 | . . . 1 . . Hauler 5 | . . 4 1 . . Recycler 5 | . . 3 2 . . Mechanic 1 | . . . 1 . . Operator 3 | . . 2 1 . . Watcher 7 | . . 4 2 1 . Swarmer 7 | . . 7 . . . Grunt 17 | . . 6 11 . . Brawler 1 | . . . 1 . . Sentry 4 | . . 1 3 . . Hunter 1 | . . . 1 . . Heavy 1 | . . . 1 . . Decomposer 4 | . . . . . 4 Best Kill Streak 6 | . . 5 6 1 . Combat Bots Only 3 | . . 3 3 . . Max Kills in Single Turn 3 | . . 1 3 1 1 Gunslinging . | . . . . . . Exploded 1 | . . . 1 . . Melee . | . . . . . . Uniques/NPCs Destroyed . | . . . . . . Combat | -11 -10 -9 -8 -7 -7 -------- Run | Yrd Mat Mat Mat Fac Low Hostile Shots Fired 191 | . . 58 104 5 24 Missed 50 | . . 15 22 2 11 Damage Taken 2107 | . . 457 1420 28 202 Core 292 | . . 65 124 14 89 Absorbed by Shields . | . . . . . . Redirected to Shielding 14 | . . 14 . . . Regen/Repaired (Parts) 287 | . . 39 248 . . Core Remaining (%) 90 | 100 100 83 77 . . Volleys Fired 131 | . 1 70 48 3 9 Largest 4 | . 2 2 4 1 1 Hottest 192 | . 60 75 192 63 25 Shots Fired 322 | . 2 131 177 3 9 Gun 269 | . 2 123 135 . 9 Cannon 53 | . . 8 42 3 . Launcher . | . . . . . . Special . | . . . . . . Kinetic 292 | . 1 123 159 . 9 Thermal . | . . . . . . Explosive . | . . . . . . Electromagnetic 30 | . 1 8 18 3 . Robot Hit Streak 10 | . . 10 10 2 6 Robot Miss Streak 8 | . 2 3 8 . 3 Penetration Max . | . . . . . . Secondary Targets 2 | . . 1 1 . . Max Gunslinging Chain 1 | . . 1 1 . . Shots Hit Robots 208 | . . 81 116 2 9 Core Hits 97 | . . 34 58 1 4 Critical Kills 1 | . . 1 . . . Critical Parts Destroyed . | . . . . . . Critical Strikes 3 | . . 1 2 . . Destroy 1 | . . 1 . . . Blast 2 | . . . 2 . . Melee Attacks 3 | . . . . . 3 Impact . | . . . . . . Slashing . | . . . . . . Piercing . | . . . . . . Sneak Attacks . | . . . . . . Combat Hostiles . | . . . . . . Follow-up Attacks . | . . . . . . Damage Inflicted 3957 | . . 1236 2471 138 112 Guns 2727 | . . 1164 1458 . 105 Cannons 847 | . . 72 687 88 . Explosions 372 | . . . 322 50 . Melee . | . . . . . . Ramming 11 | . . . 4 . 7 Kinetic 3058 | . . 1168 1785 . 105 Thermal 372 | . . . 322 50 . Explosive . | . . . . . . Electromagnetic 516 | . . 68 360 88 . Impact . | . . . . . . Slashing . | . . . . . . Piercing . | . . . . . . Highest Corruption 3 | . . . 3 . 2 Average Corruption 2 | . . . 3 . 2 Corruption Purged . | . . . . . . Corruption Blocked . | . . . . . . Effects 45 | . . . 41 . 4 Message Errors 15 | . . . 13 . 2 Matter Fused 7 | . . . 7 . . Heat Flow Errors 4 | . . . 3 . 1 Energy Discharges 5 | . . . 4 . 1 Parts Rejected 2 | . . . 2 . . Parts Fused 1 | . . . 1 . . Data Loss (minor) 5 | . . . 5 . . Data Loss (major) 2 | . . . 2 . . Misfires 4 | . . . 4 . . Overload Shots . | . . . . . . Overflow Damage 16 | . . . 8 7 1 Projectiles 7 | . . . . 7 . Explosions 8 | . . . 8 . . Melee 1 | . . . . . 1 Knockbacks . | . . . . . . Impact . | . . . . . . Kinetic . | . . . . . . Secondary . | . . . . . . Self-Inflicted Damage 91 | . . . 88 . 3 Shots 2 | . . . 2 . . Rammed 3 | . . . 1 . 2 Targets Rammed 3 | . . . 1 . 2 Kicked . | . . . . . . Crushed . | . . . . . . Highest Temperature 544 | . 20 54 544 . 260 Average Temperature 110 | . 15 17 121 . 141 Received Heat Transfer 834 | . . 177 621 18 18 Effects 2 | . . . 2 . . Shutdowns 1 | . . . 1 . . Matter Decay 1 | . . . 1 . . Siege Activations . | . . . . . . Robots Corrupted . | . . . . . . Combat Hostiles . | . . . . . . Parts Fried 3 | . . . 1 2 . Impact Corruptions 1 | . . . . . 1 Robots Melted . | . . . . . . Combat Hostiles . | . . . . . . Parts Melted 1 | . . . 1 . . Heat Transferred 300 | . . . 300 . . Parts Sabotaged . | . . . . . . Parts Stolen . | . . . . . . Parts Stripped . | . . . . . . Power Chain Reactions 3 | . . . 2 1 . Alert | -11 -10 -9 -8 -7 -7 ------- Run | Yrd Mat Mat Mat Fac Low Peak Influence 361 | . 42 277 361 205 . Initial 163 | . . . 96 163 . Average 109 | . 26 143 103 177 . Maximum Alert Level 1 | . . 1 1 1 . Low Security (%) 82 | 100 100 72 84 90 . Level 1 17 | . . 27 15 9 . Level 2 . | . . . . . . Level 3 . | . . . . . . Level 4 . | . . . . . . Level 5 . | . . . . . . High Security . | . . . . . . Max Security . | . . . . . . Squads Dispatched 11 | . 1 4 4 2 . Investigation 3 | . . 2 1 . . Extermination . | . . . . . . Reinforcement 7 | . 1 2 3 1 . Assault . | . . . . . . Garrison 1 | . . . . 1 . Intercept . | . . . . . . Searches Triggered . | . . . . . . Construction Impeded 1 | . . . 1 . . Haulers Reinforced . | . . . . . . Active Scanning Responses . | . . . . . . Cargo Convoy Interrupts . | . . . . . . Stealth | -11 -10 -9 -8 -7 -7 --------- Run | Yrd Mat Mat Mat Fac Low Distress Signals 5 | . . 3 2 . . Communications Jammed . | . . . . . . Distress Signals . | . . . . . . Times Spotted 76 | . 2 30 31 4 9 Peak Tracking Total 7 | . 2 3 5 3 7 Tactical Retreats 14 | . . 5 4 1 4 Traps | -11 -10 -9 -8 -7 -7 ------- Run | Yrd Mat Mat Mat Fac Low Traps Triggered 2 | . . 2 . . . Indirectly . | . . . . . . Trap Hack Attempts . | . . . . . . Triggered . | . . . . . . Disarmed . | . . . . . . Reprogrammed . | . . . . . . Reused . | . . . . . . Traps Extracted . | . . . . . . Installed . | . . . . . . Triggered 2 | . . . . . 2 Machines | -11 -10 -9 -8 -7 -7 ---------- Run | Yrd Mat Mat Mat Fac Low Machines Disabled 4 | . . 1 3 . . Max in Single Turn 2 | . . 1 2 . . Machines Repaired . | . . . . . . Machines Dismantled . | . . . . . . Machines Sabotaged . | . . . . . . Overloaded Fab Kills . | . . . . . . Hacking | -11 -10 -9 -8 -7 -7 --------- Run | Yrd Mat Mat Mat Fac Low Machines Accessed 7 | . 2 2 3 . . Terminals 4 | . 2 1 1 . . Fabricators . | . . . . . . Repair Stations 3 | . . 1 2 . . Recycling Units . | . . . . . . Scanalyzers . | . . . . . . Garrison Access . | . . . . . . Total Hacks 24 | . 5 8 11 . . Successful 20 | . 4 6 10 . . Failed 4 | . 1 2 1 . . Catastrophic 1 | . 1 . . . . Database Lockouts . | . . . . . . Manual . | . . . . . . Terminals 9 | . 5 2 2 . . Fabricators . | . . . . . . Repair Stations 15 | . . 6 9 . . Recycling Units . | . . . . . . Scanalyzers . | . . . . . . Garrison Access . | . . . . . . Terminal Hacks 7 | . 4 1 2 . . Robot Analysis 1 | . 1 . . . . Level Access Points 1 | . 1 . . . . Branch Access Points 2 | . . 1 1 . . Terminal Index 1 | . 1 . . . . Alert Level 1 | . . . 1 . . Hauler Manifests 1 | . 1 . . . . Fabricator Hacks . | . . . . . . Repair Station Hacks 13 | . . 5 8 . . Scan Component 7 | . . 3 4 . . Repair 6 | . . 2 4 . . Recycling Unit Hacks . | . . . . . . Scanalyzer . | . . . . . . Garrison Access Hacks . | . . . . . . Unauthorized Hacks . | . . . . . . Terminals . | . . . . . . Fabricators . | . . . . . . Repair Stations . | . . . . . . Recycling Units . | . . . . . . Scanalyzers . | . . . . . . Garrison Access . | . . . . . . Data Cores Recovered . | . . . . . . Used . | . . . . . . Hacking Detections 5 | . 1 2 2 . . Full Trace Events 2 | . 1 . 1 . . Feedback Events . | . . . . . . Feedback Blocked . | . . . . . . Robot Schematics Acquired . | . . . . . . Robots Built . | . . . . . . Authchips . | . . . . . . Time . | . . . . . . Total Robot Build Rating . | . . . . . . Part Schematics Acquired . | . . . . . . Parts Built . | . . . . . . Authchips . | . . . . . . Time . | . . . . . . Total Part Build Rating . | . . . . . . Parts Repaired 6 | . . 2 4 . . Time 262 | . . 115 147 . . Parts Recycled . | . . . . . . Recycled Matter . | . . . . . . Retrieved Matter . | . . . . . . Retrieved Components . | . . . . . . Parts Scanalyzed . | . . . . . . Part Schematics Acquired . | . . . . . . Parts Damaged . | . . . . . . Bothacking | -11 -10 -9 -8 -7 -7 ------------ Run | Yrd Mat Mat Mat Fac Low Used RIF Installer . | . . . . . . Robots Hacked 1 | . . . . . 1 Non-combat . | . . . . . . Combat 1 | . . . . . 1 Robot Hacks Applied 1 | . . . . . 1 parse_system 1 | . . . . . 1 Relay Couplers Released . | . . . . . . Fabnet Peak Effective % . | . . . . . . Robots Rewired . | . . . . . . Allies Hacked . | . . . . . . Hacks Repelled . | . . . . . . Allies | -11 -10 -9 -8 -7 -7 -------- Run | Yrd Mat Mat Mat Fac Low Total Allies . | . . . . . . Largest Group . | . . . . . . Highest-Rated Group . | . . . . . . Highest-Rated Ally . | . . . . . . Total Orders . | . . . . . . Ally Attacks . | . . . . . . Total Damage . | . . . . . . Kills . | . . . . . . Allies Corrupted . | . . . . . . Allies Melted . | . . . . . . Intel | -11 -10 -9 -8 -7 -7 ------- Run | Yrd Mat Mat Mat Fac Low Robot Analysis Total 1 | . 1 . . . . Derelict Logs Recovered . | . . . . . . Drone Launches . | . . . . . . Drone Recoveries . | . . . . . . Exploration | -11 -10 -9 -8 -7 -7 ------------- Run | Yrd Mat Mat Mat Fac Low Turns Passed 4617 | 55 473 1523 2246 94 226 Spaces Moved 1819 | 42 186 502 664 79 346 Core 333 | 10 . . . 67 256 Treads 530 | . . . 530 . . Legs 881 | 32 186 502 134 . 27 Wheels . | . . . . . . Hover . | . . . . . . Flight 75 | . . . . 12 63 Fastest Speed 40 | 50 120 120 145 50 40 Average Speed 149 | 110 120 189 184 101 55 Slowest Speed 390 | 190 120 260 330 390 140 Overloaded Moves . | . . . . . . Propulsion Burnouts . | . . . . . . Robots Hopped . | . . . . . . Cave-ins Triggered . | . . . . . . Exploration Rate (%) 30 | 4 29 40 46 3 58 Regions Visited 5 Branch Regions 1 Pre-discovered Areas . | . . . . . . Known Exits Taken 2 | . 1 . 1 . . Unknown Exits Taken 3 | 1 . 1 . 1 . Scrap Searched 1 | . . . . . 1 Spaces Dug . | . . . . . . Terrain Destroyed 68 | . . . 63 5 . Melee . | . . . . . . Projectile 14 | . . . 14 . . AOE 54 | . . . 49 5 . Terrain Rammed . | . . . . . . Walls Destroyed . | . . . . . . Machines Disabled . | . . . . . . Actions | -11 -10 -9 -8 -7 -7 --------- Run | Yrd Mat Mat Mat Fac Low Total 3459 | 49 433 948 1569 91 369 Wait 1364 | . 240 343 781 . . Move 1814 | 41 185 501 663 78 346 Hop . | . . . . . . Pick Up 38 | 2 2 10 20 4 . Fast Attach 24 | 4 2 4 13 . 1 Attach 18 | 2 . 7 3 1 5 Detach 12 | . 1 6 2 . 3 Swap 15 | . 1 2 12 . . Drop 37 | . 1 5 26 5 . Fire 131 | . 1 70 48 3 9 Melee 3 | . . . . . 3 Ram 2 | . . . . . 2 Kick . | . . . . . . Crush 1 | . . . 1 . . Escape Stasis . | . . . . . . Rewire . | . . . . . . Trap . | . . . . . . Miscellaneous . | . . . . . . Route ------- -11/Scrapyard -10/Materials (discovered 3 exits: *Mat x3) -9/Materials (discovered 3 exits: *Mat x2 / Min) -8/Materials (discovered 3 exits: *Fac / *Sto x2) -7/Factory -7/Lower Caves History --------- Turn | Location | Event 4 | -11/Scrapyard | Discovered new exit (range 16) 56 | -11/Scrapyard | Entered Materials 182 | -10/Materials | Identified exit to Materials 308 | -10/Materials | Build established: Mutant 529 | -10/Materials | Entered another Materials area 529 | -9/Materials | Evolved 2 slots: Utility x2 1087 | -9/Materials | Discovered new exit (range 3) 1184 | -9/Materials | Identified exit to Mines 1320 | -9/Materials | Repaired Imp. Assault Rifle 1391 | -9/Materials | Repaired Broken Imp. Assault Rifle 2046 | -9/Materials | Discovered new exit (range 4) 2052 | -9/Materials | Entered another Materials area 2052 | -8/Materials | Evolved 2 slots: Weapon x2 2155 | -8/Materials | Repaired Imp. Assault Rifle 2200 | -8/Materials | Repaired Sensor Array 2489 | -8/Materials | Build established: Scavenger-Skirmisher 2968 | -8/Materials | Repaired Med. Armor Plating 3008 | -8/Materials | Repaired Hpw. Shotgun 3900 | -8/Materials | Identified exit to Storage 4013 | -8/Materials | Build established: Skirmisher 4281 | -8/Materials | Discovered new exit (range 10) 4297 | -8/Materials | Identified exit to Factory 4298 | -8/Materials | Entered Factory 4298 | -7/Factory | Evolved 2 slots: Power x1, Propulsion x1 4352 | -7/Factory | Garrison activated, responded to threat 4354 | -7/Factory | Released all parts (8) 4364 | -7/Factory | Discovered new exit (range 15) 4392 | -7/Factory | Entered Lower Caves 4521 | -7/Lower Caves | Attracted the attention of an 0b10 outpost 4569 | -7/Lower Caves | Encountered a Warlord checkpoint 4615 | -7/Lower Caves | Attracted the attention of an 0b10 checkpoint 4618 | -7/Lower Caves | Self-destructed Last Messages --------------- 04541_ Acquired 4 matter. 04542_ Acquired 3 matter. 04544_ Acquired 4 matter. 04545_ Acquired 2 matter. 04545_ Acquired 4 matter. 04546_ Acquired 3 matter. 04552_ 5|E% RGFAAM,K3YK&F, THREFYQ 04567_ System corrupted: Energy discharge (-30). 04569_ 71-KBH(M): "If you spot any more Unaware lurking around the area, let us know." 04577_ Searching scrap... 04577_ Found Field Recycling Unit. 04577_ Found Mak. Leg. 04577_ Found Imp. Melee Analysis Suite. 04577_ Found 17 Matter. 04578_ Acquired 17 matter. 04578_ Acquired Mak. Leg. 04595_ System corrupted: Heat flow error (+294). 04615_ Y-54 Guardian: "INTERCEPTING UNREGISTERED DERELICT." Map ----- +----------------------------------------------------+ | ?????????????????????????????????????????????????? | | ?????????????????????????????????????????????????? | | ?????????????????????????????????????????????????? | | ?????????????????????????????????????????????????? | | ?????????????????????????????????????????????????? | | ?????????????????????????????????????????????????? | | ?????????????????????????????????????????????????? | | ?????????????????????????????????????????????????? | | ?????????????????????????????????????????????????? | | ?????????????????????????????????????????????##### | | ????????????????????????????????????????????## # | | ??????????????????????????????????????####### # | | ?????????????????????????##???????????# ## # | | ????????????????????"?? #???#??????# | | ????????????????????" ??# ##### ????## #? | | ???????????????????"" ??# ## ????# ## | | ???????????????????" ??# ?#### | | ???????????????????? ?# ## ! | | ????????????????????? ## # ! | | ????????????????????? # #?# # ##### | | ?????????????????????? #??# ##### | | ??????????????????##??? ##?## | | ??????????? ??????# ??# #### | | ?????????? ### ## ## # ### | | ?????????? ####### #?## | | ?????????? Y @ ##???## #?# | | ?????????????????## #### #????####?# | | ?????????????????# #### #??# ##????????? | | ?????????????????# ????# #### #????????? | | ?????????????????# ?????# #????????? | | ?????????????????# ???????## ##????????? | | ???????????????? ?????????## #???????? | | ???????????????##???????????# ##???????## | | ????????????????????????????# ##?????????## | | ???????????????????????????# ## #???????????# | | ???????????????????????????# ######???????????# | | ???????????????????????????# #????????????????# | | ???????????????????????????## #????????????????? | | ????????????????????????????## #????????????????? | | ?????????????????????????????####????????????????? | | ?????????????????????????????????????????????????? | | ?????????????????????????????????????????????????? | | ?????????????????????????????????????????????????? | | ?????????????????????????????????????????????????? | | ?????????????????????????????????????????????????? | | ?????????????????????????????????????????????????? | | ?????????????????????????????????????????????????? | | ?????????????????????????????????????????????????? | | ?????????????????????????????????????????????????? | | ?????????????????????????????????????????????????? | +----------------------------------------------------+ Best States ------------- Heat Dissipation 34 Energy Generation 14 Energy Capacity 280 Matter Stores 300 Matter Capacity 300 Sight Range 16 Robot Scan Range 14 Terrain Scan Density 10 ECM Strength 1 Armor Coverage 225 Core Shielding 20 Evasion (%) 62 Recoil Reduction 2 Offensive Hacking 10 Defensive Hacking 10 Item Schematics ----------------- None Robot Schematics ------------------ None Fabricated ------------ Nothing Alien Tech Used ----------------- None Achievements -------------- None Challenges ------------ None Game ------ Seed SubatomicTerrabombAnalyzer Manual? 0 Play Time 00:44:27 Cumulative 9.2 hours Start 2024.06.02 @ 10:02:15 End 2024.06.02 @ 10:50:59 Sessions 1 Manual Loads 0 Difficulty Rogue Special Mode None Game No. 20 Rogue 20 Adventurer 0 Explorer 0 Win Type - Total 0 Types 0/0/0/0/0/0/0/0/0 Lore% 5 Gallery% 13 Achievement% 10 Wizard Run 0 Options --------- Layout 1 ASCII 0 Keyboard 0 Movement Mouse Keybinds 0 Fullscreen 2 Font 24/Terminus Map View 50x35 Zoom Use 0% Tactical HUD 1 Map Filters NONE Filters NONE Steam 1 RUN: a483128a-3359-48be-8c2d-3dd64519e50a